fUST/lending_fUST_20260603
["ID","MTS","AMOUNT","RATE_DAILY","PERIOD"]
[423859931,1780457441000,-2370.6,0.0001589,2]
[423859933,1780457441000,-1527.41,0.0001589,2]
[423859921,1780457441000,-500.0,0.00015889,2]
[423859927,1780457441000,-500.0,0.0001589,2]
[423859938,1780457441000,-500.0,0.0001589,2]
[423860118,1780457442000,-169.08618077,0.000185,2]
[423860114,1780457442000,-277.76958621,0.00018498,2]
[423860101,1780457442000,-500.0,0.00018355,2]
[423860099,1780457442000,-169.08618077,0.000182,2]
[423860089,1780457442000,-169.08618077,0.00018,2]
[423860105,1780457442000,-2370.6,0.00018356,2]
[423860095,1780457442000,-1527.41,0.00018082,2]
[423860094,1780457442000,-2370.6,0.00018082,2]
[423860097,1780457442000,-618.05,0.00018082,2]
[423860091,1780457442000,-722.6,0.00018082,2]
[423860092,1780457442000,-392.08296841,0.00018082,2]
[423860126,1780457442000,-1527.41,0.0001863,2]
[423860110,1780457442000,-169.08618077,0.000184,2]
[423860109,1780457442000,-618.05,0.00018356,2]
[423860130,1780457442000,-1488.07,0.0001863,2]
[423860120,1780457442000,-1000.0,0.00018583,2]
[423860107,1780457442000,-1527.41,0.00018356,2]
[423860122,1780457442000,-722.6,0.0001863,2]
[423860112,1780457442000,-154.31643678,0.00018498,2]
[423860103,1780457442000,-722.6,0.00018356,2]
[423860124,1780457442000,-2370.6,0.0001863,2]
[423860139,1780457442000,-500.0,0.00018898,2]
[423860128,1780457442000,-618.05,0.0001863,2]
[423860132,1780457442000,-421.8222104,0.00018638,2]
[423860134,1780457442000,-1000.0,0.000188,4]
[423860145,1780457442000,-444.0,0.00018899,2]
[423860147,1780457442000,-353.114,0.00018899,2]
[423860143,1780457442000,-2222.027,0.00018899,2]
[423860079,1780457442000,-2370.6,0.00017808,2]
[423860116,1780457442000,-493.81259771,0.00018498,2]
[423860081,1780457442000,-1527.41,0.00017808,2]
[423860022,1780457442000,-722.6,0.00016986,2]
[423860085,1780457442000,-153.80130785,0.00017991,2]
[423860024,1780457442000,-500.0,0.00016986,2]
[423860141,1780457442000,-3631.0,0.00018899,2]
[423860026,1780457442000,-500.0,0.00016986,2]
[423860031,1780457442000,-186.25768967,0.00016986,2]
[423860029,1780457442000,-1527.41,0.00016986,2]
[423860027,1780457442000,-2370.6,0.00016986,2]
[423860034,1780457442000,-195.2497337,0.00016986,2]
[423860040,1780457442000,-722.6,0.0001726,2]
[423860036,1780457442000,-215.79666087,0.00016986,2]
[423860038,1780457442000,-618.05,0.00016986,2]
[423860044,1780457442000,-500.0,0.0001726,2]
[423860042,1780457442000,-500.0,0.0001726,2]
[423860050,1780457442000,-618.05,0.0001726,2]
[423860048,1780457442000,-1527.41,0.0001726,2]
[423860077,1780457442000,-500.0,0.00017808,2]
[423860046,1780457442000,-2370.6,0.0001726,2]
[423860063,1780457442000,-1527.41,0.00017534,2]
[423860058,1780457442000,-167.59539443,0.00017534,2]
[423860052,1780457442000,-160.0,0.00017402,2]
[423860055,1780457442000,-722.6,0.00017534,2]
[423860059,1780457442000,-500.0,0.00017534,2]
[423860065,1780457442000,-618.05,0.00017534,2]
[423860069,1780457442000,-722.6,0.00017808,2]
[423860061,1780457442000,-2370.6,0.00017534,2]
[423860067,1780457442000,-1000.0,0.000178,3]
[423860071,1780457442000,-151.0,0.00017808,2]
[423860073,1780457442000,-151.0,0.00017808,2]
[423860075,1780457442000,-151.0,0.00017808,2]
[423860087,1780457442000,-155.73643137,0.00017994,2]
[423860083,1780457442000,-618.05,0.00017808,2]
[423860054,1780457442000,-500.0,0.00017533,2]
[423860149,1780457442000,-201.886,0.00018899,2]
[423860276,1780457442000,-1527.41,0.00019726,2]
[423860165,1780457442000,-722.6,0.00019178,2]
[423860212,1780457442000,-151.5,0.00019452,2]
[423860224,1780457442000,-200.90358568,0.00019452,2]
[423860229,1780457442000,-203.68919948,0.00019452,2]
[423860227,1780457442000,-199.55028983,0.00019452,2]
[423860231,1780457442000,-250.0,0.00019452,2]
[423860242,1780457442000,-618.05,0.00019452,2]
[423860244,1780457442000,-1488.07,0.00019452,2]
[423860236,1780457442000,-722.6,0.00019452,2]
[423860232,1780457442000,-201.0464105,0.00019452,2]
[423860246,1780457442000,-414.12460759,0.00019472,2]
[423860238,1780457442000,-2370.6,0.00019452,2]
[423860240,1780457442000,-1527.41,0.00019452,2]
[423860234,1780457442000,-200.5565406,0.00019452,2]
[423860251,1780457442000,-240.06987625,0.00019472,2]
[423860222,1780457442000,-151.5,0.00019452,2]
[423860249,1780457442000,-1325.19874429,0.00019472,2]
[423860253,1780457442000,-300.0,0.00019589,3]
[423860267,1780457442000,-500.0,0.00019725,2]
[423860269,1780457442000,-500.0,0.00019725,2]
[423860270,1780457442000,-591.09760323,0.00019725,2]
[423860259,1780457442000,-1614.895918,0.000196,2]
[423860261,1780457442000,-185.819271,0.000196,2]
[423860257,1780457442000,-887.447959,0.000196,2]
[423860274,1780457442000,-2370.6,0.00019726,2]
[423860265,1780457442000,-175.661697,0.00019635,2]
[423860263,1780457442000,-235.425601,0.000196,2]
[423860272,1780457442000,-722.6,0.00019726,2]
[423860278,1780457442000,-618.05,0.00019726,2]
[423860280,1780457442000,-1488.07,0.00019726,2]
[423860163,1780457442000,-300.0,0.00019178,2]
[423860255,1780457442000,-160.0,0.000196,2]
[423860220,1780457442000,-151.5,0.00019452,2]
[423860248,1780457442000,-745.42429366,0.00019472,2]
[423860210,1780457442000,-161.043367,0.00019368,2]
[423860218,1780457442000,-151.5,0.00019452,2]
[423860167,1780457442000,-2370.6,0.00019178,2]
[423860153,1780457442000,-2370.6,0.00018904,2]
[423860157,1780457442000,-618.05,0.00018904,2]
[423860171,1780457442000,-618.05,0.00019178,2]
[423860155,1780457442000,-1527.41,0.00018904,2]
[423860169,1780457442000,-1527.41,0.00019178,2]
[423860175,1780457442000,-282.126181,0.00019178,2]
[423860173,1780457442000,-282.126181,0.00019178,2]
[423860161,1780457442000,-1587.33944819,0.00019049,2]
[423860159,1780457442000,-1488.07,0.00018904,2]
[423860177,1780457442000,-282.126181,0.00019178,2]
[423860183,1780457442000,-372.442424,0.00019178,2]
[423860181,1780457442000,-372.442424,0.00019178,2]
[423860188,1780457442000,-201.99402349,0.00019178,10]
[423860196,1780457442000,-500.0,0.00019214,2]
[423860202,1780457442000,-384.354,0.00019235,2]
[423860151,1780457442000,-722.6,0.00018904,2]
[423860179,1780457442000,-282.126181,0.00019178,2]
[423860186,1780457442000,-372.442424,0.00019178,2]
[423860184,1780457442000,-372.442424,0.00019178,2]
[423860194,1780457442000,-2000.0,0.000192,5]
[423860192,1780457442000,-1488.07,0.00019178,2]
[423860200,1780457442000,-5938.8740381,0.00019215,2]
[423860198,1780457442000,-428.22761373,0.00019215,2]
[423860190,1780457442000,-242.3928282,0.00019178,10]
[423860204,1780457442000,-236.64657242,0.00019329,2]
[423860216,1780457442000,-151.5,0.00019452,2]
[423860214,1780457442000,-298.5,0.00019452,2]
[423860206,1780457442000,-500.0,0.00019329,2]
[423860208,1780457442000,-201.99402349,0.00019362,10]
[423860284,1780457443000,-372.442424,0.00019761,2]
[423860286,1780457443000,-372.442424,0.00019761,2]
[423860282,1780457443000,-372.442424,0.00019761,2]
[423860288,1780457443000,-372.442424,0.00019761,2]
[423860300,1780457443000,-917.69171817,0.00019761,2]
[423860296,1780457443000,-121.29028452,0.00013972,2]
[423860294,1780457443000,-379.70248802,0.00013972,2]
[423860302,1780457443000,-374.46127761,0.00019761,2]
[423860298,1780457443000,-207.87515637,0.00015158,2]
[423860290,1780457443000,-24681.26913866,0.00019761,2]
[423860591,1780457447000,-6678.7237681,0.00019761,2]
[423860590,1780457447000,-204.035521,0.00019366,2]
[423860910,1780457915000,312.44636068,8.203e-05,2]
[423860983,1780458561000,-151.0,9.228e-05,2]
[423861008,1780458632000,-500.0,0.00018652,2]
[423861064,1780458632000,-443.07715955,0.000188,2]
[423861044,1780458632000,-787.872,0.00018654,2]
[423861038,1780458632000,-1634.7924,0.00018654,2]
[423861050,1780458632000,-181.78489565,0.00018699,2]
[423861018,1780458632000,-500.0,0.00018652,2]
[423861025,1780458632000,-500.0,0.00018652,2]
[423861010,1780458632000,-500.0,0.00018652,2]
[423861012,1780458632000,-500.0,0.00018652,2]
[423860998,1780458632000,-726.55957208,9.045e-05,2]
[423861042,1780458632000,-1238.29359282,0.00018654,2]
[423861034,1780458632000,-618.26044131,0.00018653,2]
[423861031,1780458632000,-500.0,0.00018652,2]
[423861003,1780458632000,-1000.0,0.0001561,2]
[423861001,1780458632000,-151.6,0.00012,2]
[423861014,1780458632000,-501.18786156,0.00018652,2]
[423861006,1780458632000,-322.00824781,0.00017984,2]
[423861016,1780458632000,-500.0,0.00018652,2]
[423861029,1780458632000,-500.0,0.00018652,2]
[423861020,1780458632000,-500.0,0.00018652,2]
[423861054,1780458632000,-3928.68638168,0.00018775,2]
[423861002,1780458632000,-175.661697,0.0001541,2]
[423861040,1780458632000,-1620.8210429,0.00018654,2]
[423861036,1780458632000,-500.0,0.00018653,2]
[423861022,1780458632000,-500.0,0.00018652,2]
[423861005,1780458632000,-161.00412391,0.00017632,2]
[423860999,1780458632000,-5000.0,9.136e-05,2]
[423861007,1780458632000,-992.04,0.0001863,2]
[423861046,1780458632000,-2680.38967168,0.00018654,2]
[423861032,1780458632000,-500.0,0.00018652,2]
[423861048,1780458632000,-960.9905855,0.00018654,2]
[423861027,1780458632000,-500.0,0.00018652,2]
[423861004,1780458632000,-195.346639,0.00017225,2]
[423861000,1780458632000,-882.50998161,0.0001,2]
[423861052,1780458632000,-810.30225953,0.00018699,2]
[423861024,1780458632000,-500.0,0.00018652,2]
[423861062,1780458632000,-2637.14633041,0.00018775,2]
[423861150,1780458641000,-500.0,0.00018873,2]
[423861156,1780458641000,-500.22660401,0.00018873,2]
[423861169,1780458641000,-444.0,0.00018875,2]
[423861148,1780458641000,-160.0,0.00018849,2]
[423861165,1780458641000,-168.114,0.00018875,2]
[423861146,1780458641000,-556.92284045,0.000188,2]
[423861163,1780458641000,-2206.0,0.00018875,2]
[423861161,1780458641000,-2177.863,0.00018875,2]
[423861159,1780458641000,-663.761,0.00018875,2]
[423861143,1780458641000,-5000.0,0.00018612,2]
[423861152,1780458641000,-500.0,0.00018873,2]
[423861167,1780458641000,-201.886,0.00018875,2]
[423861154,1780458641000,-500.0,0.00018873,2]
[423861194,1780458641000,-837.0,0.00019488,2]
[423861174,1780458641000,-222.66840275,0.00019147,2]
[423861197,1780458641000,-13394.22272144,0.00019562,2]
[423861178,1780458641000,-517.30098393,0.00019199,5]
[423861183,1780458641000,-500.0,0.000192,2]
[423861186,1780458641000,-527.46506919,0.00019201,2]
[423861170,1780458641000,-500.0,0.00018926,2]
[423861195,1780458641000,-300.0,0.00019561,2]
[423861180,1780458641000,-1000.0,0.000192,3]
[423861176,1780458641000,-500.0,0.00019147,2]
[423861188,1780458641000,-307.484,0.00019206,2]
[423861190,1780458641000,-500.0,0.00019421,2]
[423861192,1780458641000,-500.0,0.00019474,2]
[423861172,1780458641000,-500.0,0.00018927,2]
[423861230,1780458642000,-3277.16879718,0.00019562,2]
[423861203,1780458642000,-47.47736445,0.00019562,2]
[423861199,1780458642000,-515974.0034757,0.00019562,2]
[423861252,1780458642000,-262.98385,0.00019562,2]
[423861308,1780458643000,-981.83182877,0.00019562,2]
[423861306,1780458643000,-160.0,0.00017428,2]
[423861345,1780458644000,-254.94438687,0.00019562,2]
[423861314,1780458644000,-13199.99999996,0.00019562,2]
[423861625,1780458646000,-500.0,0.00019695,2]
[423861627,1780458646000,-223.465454,0.00019722,2]
[423861629,1780458646000,-223.465454,0.00019722,2]
[423861621,1780458646000,-835.3124654,0.00019562,2]
[423861623,1780458646000,-644.78927675,0.00019589,3]
[423861638,1780458646000,-251.92664,0.00019722,2]
[423861631,1780458646000,-223.465454,0.00019722,2]
[423861633,1780458646000,-223.465454,0.00019722,2]
[423861634,1780458646000,-251.92664,0.00019722,2]
[423861636,1780458646000,-251.92664,0.00019722,2]
[423861641,1780458646000,-215.26614623,0.00019722,2]
[423862445,1780458778000,-152.0,0.0001066,7]
[423862444,1780458778000,-152.0,0.0001066,7]
[423862454,1780459146000,-1000.0,0.00010243,2]
[423862468,1780459311000,-152.0,0.0001004,2]
[423862538,1780459832000,-433.45811007,9.172e-05,2]
[423862561,1780459832000,-431.09226727,9.359e-05,2]
[423862540,1780459832000,-436.26232835,9.172e-05,2]
[423862548,1780459832000,-2380.28219359,9.172e-05,2]
[423862550,1780459832000,-163.81027765,9.265e-05,2]
[423862542,1780459832000,-1749.99736799,9.172e-05,2]
[423862563,1780459832000,-166.66,9.566e-05,2]
[423862569,1780459832000,-300.0,0.00010215,2]
[423862559,1780459832000,-2038.19276435,9.265e-05,2]
[423862557,1780459832000,-382.49053454,9.265e-05,2]
[423862565,1780459832000,-1200.0,9.938e-05,2]
[423862567,1780459832000,-160.0,0.0001,2]
[423862568,1780459832000,-300.0,0.00010215,2]
[423862572,1780459832000,-566.27211734,0.00010216,2]
[423862571,1780459832000,-300.0,0.00010215,2]
[423862551,1780459832000,-2579.31670111,9.265e-05,2]
[423862657,1780459840000,-500.0,0.00010243,2]
[423862673,1780459840000,-152.0,0.00010765,7]
[423862671,1780459840000,-152.0,0.00010762,7]
[423862655,1780459840000,-500.0,0.00010243,2]
[423862667,1780459840000,-152.0,0.00010663,7]
[423862653,1780459840000,-500.0,0.00010243,2]
[423862675,1780459840000,-300.0,0.00010766,2]
[423862669,1780459840000,-602.26563355,0.00010663,7]
[423862663,1780459840000,-506.1357568,0.00010284,2]
[423862665,1780459840000,-185.89850361,0.00010454,2]
[423862661,1780459840000,-435.52049822,0.00010243,2]
[423862659,1780459840000,-500.0,0.00010243,2]
[423862649,1780459840000,-418.66799068,0.00010216,2]
[423862651,1780459840000,-166.66,0.00010216,2]
[423862680,1780459840000,-300.0,0.00010766,2]
[423862698,1780459840000,-300.0,0.00010766,2]
[423862685,1780459840000,-300.0,0.00010766,2]
[423862677,1780459840000,-300.0,0.00010766,2]
[423862712,1780459840000,-1680.0,0.00010932,2]
[423862708,1780459840000,-170.0147,0.0001077,2]
[423862710,1780459840000,-602.26563355,0.00010876,7]
[423862706,1780459840000,-300.0,0.00010766,2]
[423862702,1780459840000,-300.0,0.00010766,2]
[423862714,1780459840000,-156.0,0.00010959,2]
[423862704,1780459840000,-300.0,0.00010766,2]
[423862690,1780459840000,-300.0,0.00010766,2]
[423862687,1780459840000,-300.0,0.00010766,2]
[423862696,1780459840000,-300.0,0.00010766,2]
[423862694,1780459840000,-300.0,0.00010766,2]
[423862692,1780459840000,-300.0,0.00010766,2]
[423862683,1780459840000,-300.0,0.00010766,2]
[423862700,1780459840000,-300.0,0.00010766,2]
[423862740,1780459841000,-786.88397015,0.00011077,2]
[423862716,1780459841000,-2014.72618548,0.00011077,2]
[423863050,1780459843000,-602.26563355,0.00011196,7]
[423863043,1780459843000,-643.06437923,0.00011077,2]
[423863039,1780459843000,-5000.0,0.00010849,2]
[423863048,1780459843000,-5135.13982864,0.00011077,2]
[423863041,1780459843000,-1425.6768635,0.00011077,2]
[423863054,1780459843000,-602.26563355,0.00011516,7]
[423863056,1780459843000,-360.455509,0.00011699,2]
[423863058,1780459843000,-232.50150936,0.00011786,2]
[423863052,1780459843000,-300.0,0.00011234,2]
[423863125,1780459844000,-500.0,0.00013698,2]
[423863134,1780459844000,-493.66634876,0.00013698,2]
[423863130,1780459844000,-500.0,0.00013698,2]
[423863132,1780459844000,-500.0,0.00013698,2]
[423863136,1780459844000,-500.0,0.00013698,2]
[423863129,1780459844000,-622.18,0.00013698,2]
[423863140,1780459844000,-500.0,0.00013698,2]
[423863144,1780459844000,-500.0,0.00013698,2]
[423863141,1780459844000,-500.0,0.00013698,2]
[423863145,1780459844000,-500.0,0.00013698,2]
[423863147,1780459844000,-570.88510212,0.00013698,2]
[423863161,1780459844000,-500.0,0.00013698,2]
[423863157,1780459844000,-500.0,0.00013698,2]
[423863153,1780459844000,-500.0,0.00013698,2]
[423863163,1780459844000,-500.0,0.00013698,2]
[423863155,1780459844000,-185.19079269,0.00013698,2]
[423863159,1780459844000,-500.0,0.00013698,2]
[423863165,1780459844000,-501.07271544,0.00013698,2]
[423863174,1780459844000,-500.0,0.00013698,2]
[423863172,1780459844000,-500.0,0.00013698,2]
[423863170,1780459844000,-500.0,0.00013698,2]
[423863127,1780459844000,-500.0,0.00013698,2]
[423863149,1780459844000,-500.0,0.00013698,2]
[423863123,1780459844000,-230.32672615,0.00013698,2]
[423863105,1780459844000,-500.0,0.00013698,2]
[423863121,1780459844000,-500.0,0.00013698,2]
[423863082,1780459844000,-152.0,0.00012,2]
[423863074,1780459844000,-367.49849064,0.00011786,2]
[423863086,1780459844000,-360.455509,0.00012192,2]
[423863084,1780459844000,-2047.0,0.00012025,2]
[423863088,1780459844000,-156.0,0.0001268,2]
[423863076,1780459844000,-150.87220649,0.00011942,2]
[423863080,1780459844000,-152.01,0.00012,2]
[423863078,1780459844000,-602.26563355,0.00011943,7]
[423863090,1780459844000,-360.455509,0.00012684,2]
[423863092,1780459844000,-720.0,0.00012965,2]
[423863096,1780459844000,-150.87220649,0.00013177,2]
[423863094,1780459844000,-360.455509,0.00013177,2]
[423863168,1780459844000,-500.0,0.00013698,2]
[423863103,1780459844000,-500.0,0.00013698,2]
[423863109,1780459844000,-500.84517463,0.00013698,2]
[423863098,1780459844000,-192.9051251,0.00013595,2]
[423863099,1780459844000,-360.455509,0.00013669,2]
[423863101,1780459844000,-500.0,0.00013698,2]
[423863108,1780459844000,-500.0,0.00013698,2]
[423863111,1780459844000,-500.0,0.00013698,2]
[423863113,1780459844000,-464.47889005,0.00013698,2]
[423863115,1780459844000,-454.41900695,0.00013698,2]
[423863117,1780459844000,-280.09429417,0.00013698,2]
[423863119,1780459844000,-500.0,0.00013698,2]
[423863176,1780459844000,-500.0,0.00013698,2]
[423863151,1780459844000,-500.0,0.00013698,2]
[423863181,1780459844000,-91.94447738,0.00013698,2]
[423863222,1780459844000,-190.07807476,0.00013698,2]
[423863236,1780459844000,-496.50385258,0.00013698,2]
[423863224,1780459844000,-500.0,0.00013698,2]
[423863237,1780459844000,-224.35263399,0.00013698,2]
[423863240,1780459844000,-275.64736601,0.00013698,2]
[423863242,1780459844000,-1000.0,0.00013699,2]
[423863243,1780459844000,-150.96585147,0.00013972,2]
[423863245,1780459844000,-500.0,0.00013972,2]
[423863247,1780459844000,-500.0,0.00013972,2]
[423863249,1780459844000,-500.0,0.00013972,2]
[423863251,1780459844000,-500.0,0.00013972,2]
[423863262,1780459844000,-271.26697141,0.00013972,2]
[423863264,1780459844000,-360.455509,0.00014162,2]
[423863253,1780459844000,-648.26711064,0.00013972,2]
[423863259,1780459844000,-500.0,0.00013972,2]
[423863257,1780459844000,-500.0,0.00013972,2]
[423863260,1780459844000,-227.46,0.00013972,2]
[423863255,1780459844000,-553.50946114,0.00013972,2]
[423863267,1780459844000,-410.29156582,0.00014246,2]
[423863271,1780459844000,-864.0,0.00014261,2]
[423863278,1780459844000,-627.33284874,0.00014758,2]
[423863281,1780459844000,-3928.60947472,0.00014758,2]
[423863187,1780459844000,-244.86944343,0.00013698,2]
[423863232,1780459844000,-370.4232852,0.00013698,2]
[423863220,1780459844000,-500.0,0.00013698,2]
[423863274,1780459844000,-156.0,0.0001468,2]
[423863234,1780459844000,-500.0,0.00013698,2]
[423863226,1780459844000,-500.0,0.00013698,2]
[423863167,1780459844000,-500.0,0.00013698,2]
[423863184,1780459844000,-408.05552262,0.00013698,2]
[423863189,1780459844000,-459.88188329,0.00013698,2]
[423863179,1780459844000,-500.0,0.00013698,2]
[423863185,1780459844000,-500.0,0.00013698,2]
[423863191,1780459844000,-500.0,0.00013698,2]
[423863193,1780459844000,-500.0,0.00013698,2]
[423863202,1780459844000,-500.0,0.00013698,2]
[423863204,1780459844000,-300.6154181,0.00013698,2]
[423863195,1780459844000,-500.0,0.00013698,2]
[423863177,1780459844000,-173.34967211,0.00013698,2]
[423863201,1780459844000,-370.73099905,0.00013698,2]
[423863207,1780459844000,-199.3845819,0.00013698,2]
[423863199,1780459844000,-500.0,0.00013698,2]
[423863212,1780459844000,-500.0,0.00013698,2]
[423863210,1780459844000,-500.0,0.00013698,2]
[423863208,1780459844000,-500.0,0.00013698,2]
[423863216,1780459844000,-500.0,0.00013698,2]
[423863214,1780459844000,-500.0,0.00013698,2]
[423863228,1780459844000,-500.0,0.00013698,2]
[423863218,1780459844000,-337.49103445,0.00013698,2]
[423863230,1780459844000,-222.05150593,0.00013698,2]
[423863197,1780459844000,-500.0,0.00013698,2]
[423863361,1780459845000,-192.90512509,0.00018115,2]
[423863355,1780459845000,-869.35624138,0.00017943,2]
[423863357,1780459845000,-188.79755756,0.00017943,2]
[423863348,1780459845000,-178.11754327,0.00017943,2]
[423863350,1780459845000,-675.29910209,0.00017943,2]
[423863342,1780459845000,-174.53441239,0.00017937,2]
[423863336,1780459845000,-444.0,0.00017879,2]
[423863346,1780459845000,-179.3196102,0.00017943,2]
[423863352,1780459845000,-222.92469266,0.00017943,2]
[423863369,1780459845000,-169.17244116,0.00018653,2]
[423863371,1780459845000,-275.47345247,0.00018653,2]
[423863373,1780459845000,-500.0,0.00018653,2]
[423863365,1780459845000,-152.0,0.00018553,2]
[423863367,1780459845000,-925.91,0.0001863,2]
[423863363,1780459845000,-186.93245485,0.00018254,2]
[423863375,1780459845000,-500.0,0.00018653,2]
[423863377,1780459845000,-225.407,0.0001868,2]
[423863379,1780459845000,-151.0,0.00018699,2]
[423863381,1780459845000,-151.0,0.00018699,2]
[423863383,1780459845000,-1415.0,0.00018875,2]
[423863344,1780459845000,-401.78604969,0.00017937,2]
[423863359,1780459845000,-223.9680926,0.00017943,2]
[423863340,1780459845000,-412.18801486,0.00017937,2]
[423863300,1780459845000,-225.407,0.0001668,2]
[423863339,1780459845000,-312.55240677,0.00017937,2]
[423863283,1780459845000,-5502.35841072,0.00014758,2]
[423863291,1780459845000,-168.82477552,0.00016274,2]
[423863287,1780459845000,-192.90512509,0.00015102,2]
[423863289,1780459845000,-1000.0,0.00015687,2]
[423863284,1780459845000,-4941.69926582,0.00014758,2]
[423863286,1780459845000,-175.661697,0.00015068,2]
[423863285,1780459845000,-152.01,0.000148,2]
[423863305,1780459845000,-434.67812069,0.00017065,2]
[423863294,1780459845000,-217.33906034,0.00016274,2]
[423863297,1780459845000,-192.90512509,0.00016609,2]
[423863387,1780459845000,-925.91,0.00018904,2]
[423863308,1780459845000,-1000.0,0.00017256,2]
[423863302,1780459845000,-337.64955105,0.00017065,2]
[423863313,1780459845000,-160.0,0.00017492,2]
[423863325,1780459845000,-156.27620338,0.00017592,2]
[423863327,1780459845000,-200.89302484,0.00017592,2]
[423863330,1780459845000,-152.01,0.000176,2]
[423863318,1780459845000,-506.47432657,0.00017592,2]
[423863321,1780459845000,-652.01718103,0.00017592,2]
[423863316,1780459845000,-156.43096566,0.00017585,2]
[423863334,1780459845000,-185.0,0.00017879,2]
[423863332,1780459845000,-151.0,0.00017706,2]
[423863310,1780459845000,-244.0,0.00017256,2]
[423863385,1780459845000,-2206.0,0.00018875,2]
[423863441,1780459845000,-223.465454,0.00019716,2]
[423863389,1780459845000,-500.0,0.00018927,2]
[423863449,1780459845000,-251.92664,0.00019716,2]
[423863447,1780459845000,-251.92664,0.00019716,2]
[423863451,1780459845000,-251.92664,0.00019716,2]
[423863453,1780459845000,-251.92664,0.00019716,2]
[423863457,1780459845000,-151.0,0.00019722,2]
[423863455,1780459845000,-762726.8986,0.00019716,2]
[423863461,1780459845000,-487.0,0.00019722,2]
[423863459,1780459845000,-151.0,0.00019722,2]
[423863463,1780459845000,-783.98,0.00019722,2]
[423863465,1780459845000,-925.91,0.00019726,2]
[423863445,1780459845000,-223.465454,0.00019716,2]
[423863469,1780459845000,-161.92999024,0.00019762,3]
[423863473,1780459845000,-303.18785989,0.00019799,2]
[423863475,1780459845000,-9248.25732781,0.000199,2]
[423863477,1780459845000,-166.0,0.0001992,2]
[423863480,1780459845000,-166.0,0.0001992,2]
[423863481,1780459845000,-156.0,0.0001992,2]
[423863483,1780459845000,-156.0,0.0001992,2]
[423863486,1780459845000,-156.0,0.0001992,2]
[423863489,1780459845000,-156.0,0.0001992,2]
[423863491,1780459845000,-156.0,0.0001992,2]
[423863391,1780459845000,-1000.0,0.00018982,2]
[423863471,1780459845000,-1530.90277167,0.00019782,4]
[423863443,1780459845000,-223.465454,0.00019716,2]
[423863467,1780459845000,-166.0,0.00019761,2]
[423863437,1780459845000,-192.90512509,0.00019622,2]
[423863439,1780459845000,-223.465454,0.00019716,2]
[423863396,1780459845000,-531.0,0.00019,2]
[423863398,1780459845000,-925.91,0.00019178,2]
[423863402,1780459845000,-285.896,0.00019201,2]
[423863400,1780459845000,-500.0,0.00019201,2]
[423863393,1780459845000,-492.0,0.00018982,2]
[423863405,1780459845000,-296.83192589,0.00019215,2]
[423863411,1780459845000,-925.91,0.00019452,2]
[423863409,1780459845000,-152.0,0.00019413,2]
[423863412,1780459845000,-824.0,0.00019488,2]
[423863407,1780459845000,-339.23648673,0.00019215,2]
[423863414,1780459845000,-559.48244168,0.00019516,2]
[423863434,1780459845000,-239.141465,0.000196,2]
[423863420,1780459845000,-223.465454,0.0001953,2]
[423863416,1780459845000,-6778.5175024,0.0001953,2]
[423863424,1780459845000,-223.465454,0.0001953,2]
[423863422,1780459845000,-223.465454,0.0001953,2]
[423863428,1780459845000,-251.92664,0.0001953,2]
[423863426,1780459845000,-251.92664,0.0001953,2]
[423863430,1780459845000,-251.92664,0.0001953,2]
[423863432,1780459845000,-251.92664,0.0001953,2]
[423863418,1780459845000,-223.465454,0.0001953,2]